Cogmind - Beta 14 *** ADVENTURER MODE // 2024.10.18 @ 06:56:52 Player: Jefffff Result: Destroyed by S-43 Plague with Heavy Machine Gun Performance ------------- Evolutions (7) 3500 Regions Visited (14) 2800 Robots Destroyed (128) 640 Value Destroyed (5087) 5087 Prototype IDs (36) 720 Alien Tech Used (0) 0 Bonus (1529) 1529 TOTAL SCORE: 14276 Bonus ------- High Alert Combat Kills 327 Follower Combat Kills 800 Aligned with FarCom 300 Met Data Miner 300 Friendly Fire -198 Cogmind --------- Core Integrity 0/1300 Matter 12/300 Energy 100/100 System Corruption 1% Temperature Cool (0) Movement Core (50) Location -3/Research Parts ------- > --- POWER (2) -------- (None) > --- PROPULSION (6) --- (None) > --- UTILITY (9) ------ (None) > --- WEAPON (4) ------- (None) > --- INVENTORY (5) ---- Advanced Medium Treads Advanced Thermal Shield Linear Accelerator Peak State ------------ > --- POWER ------------ Micro Fission Core Antimatter Reactor > --- PROPULSION ------- Medium Armored Exoskeleton Medium Armored Exoskeleton > --- UTILITY ---------- Improved Heat Sink High-capacity Storage Unit Energy Filter Improved Weapon Cycler Improved Utility Shielding Improved Shock Absorption System EM Disruption Field > --- WEAPON ----------- Gauss Cannon Micro-nuke Launcher Field Lobotomy Kit Great Maul > --- INVENTORY -------- Light Fission Core Micro Fission Core Improved Fusion Compressor Armored Treads Advanced Medium Treads Flexi-carbon Leg Myomer Leg Myomer Leg Advanced Signal Interpreter Recoil Stabilizer Improved Light Armor Plating System Shield Advanced Trap Extractor Variable Charge Gun Heavy Gatling Laser Dispersion Rifle Railgun Gauss Cannon Mass Driver [Rating: 111] Favorites ----------- Power Light Nuclear Core Engine Light Angular Momentum Engine Power Core Light Nuclear Core Reactor Antimatter Reactor Propulsion Carbon-fiber Leg Treads Armored Treads Leg Carbon-fiber Leg Wheel Wheel Flight Unit Impulse Thruster Array Utility High-capacity Storage Unit Device Advanced Heat Sink Storage High-capacity Storage Unit Protection Improved Light Armor Plating Weapon Gauss Cannon Energy Gun Pulse Rifle Energy Cannon Advanced Plasma Cannon Ballistic Gun Assault Rifle Ballistic Cannon Gauss Cannon Launcher Micro-nuke Launcher Special Weapon Field Lobotomy Kit Impact Weapon Great Maul Slashing Weapon Great Axe Build | -11 -10 -10 -10 -9 -8 -7 -6 -6 -6 -6 -5 -5 -4 -3 ------- Run | Yrd Mat Min Exi Min Mat Fac Fac Low Low Dat Pro Fac Fac Res Slots Evolved 14 | . . . . . 4 2 2 . . . . 2 2 2 Power 1 | . . . . . . 1 . . . . . . . . Propulsion 4 | . . . . . 2 . . . . . . 1 1 . Utility 7 | . . . . . 2 . 1 . . . . 1 1 2 Weapon 2 | . . . . . . 1 1 . . . . . . . Parts Attached 137 | 4 7 . . . 19 12 2 8 4 2 8 38 28 5 Power 21 | 1 1 . . . 1 4 . . 1 . 1 7 3 2 Engine 6 | 1 . . . . 1 2 . . 1 . . 1 . . Core 11 | . 1 . . . . 2 . . . . 1 5 1 1 Reactor 4 | . . . . . . . . . . . . 1 2 1 Propulsion 45 | 2 . . . . 10 2 . 2 2 . 1 15 9 2 Treads 14 | . . . . . 1 . . . . . . 10 3 . Leg 24 | . . . . . 5 2 . 2 2 . 1 5 6 1 Wheel 6 | 2 . . . . 4 . . . . . . . . . Hover . | . . . . . . . . . . . . . . . Flight 1 | . . . . . . . . . . . . . . 1 Utility 38 | 1 2 . . . 7 3 1 2 1 . 3 10 8 . Device 25 | . 1 . . . 6 3 . . 1 . 3 5 6 . Storage 2 | 1 1 . . . . . . . . . . . . . Processor . | . . . . . . . . . . . . . . . Hackware . | . . . . . . . . . . . . . . . Protection 11 | . . . . . 1 . 1 2 . . . 5 2 . Artifact . | . . . . . . . . . . . . . . . Weapon 33 | . 4 . . . 1 3 1 4 . 2 3 6 8 1 Energy Gun 8 | . 2 . . . . 1 . . . 1 1 . 3 . Energy Cannon 1 | . . . . . . . . . . . . 1 . . Ballistic Gun 3 | . 1 . . . . . . . . . . 1 1 . Ballistic Cannon 12 | . 1 . . . 1 2 1 2 . 1 1 2 . 1 Launcher 3 | . . . . . . . . . . . . . 3 . Special Weapon 2 | . . . . . . . . 1 . . . . 1 . Impact Weapon 2 | . . . . . . . . 1 . . . 1 . . Slashing Weapon 2 | . . . . . . . . . . . 1 1 . . Piercing Weapon . | . . . . . . . . . . . . . . . Special Melee Weapon . | . . . . . . . . . . . . . . . Unidentified Prototypes 2 | . . . . . 1 . . . . . . . 1 . Parts Lost 44 | . . . . . 1 5 . 4 . . 1 19 11 3 Power 9 | . . . . . . 2 . 1 . . . 3 1 2 Propulsion 11 | . . . . . . . . 1 . . 1 8 . 1 Utility 14 | . . . . . 1 2 . 2 . . . 3 6 . Weapon 10 | . . . . . . 1 . . . . . 5 4 . Highest Loss Streak 7 | . . . . . 1 4 . 3 . . 1 7 3 3 To Critical Strikes 1 | . . . . . . . . . . . . . . 1 Average Slot Usage (%) 89 | . 95 100 100 100 96 96 100 95 88 81 98 81 83 3 Engine 3 | . 8 . . . 4 8 6 2 2 6 6 2 . . Core 5 | . 5 14 14 14 4 4 6 6 6 6 6 5 3 . Reactor 1 | . . . . . . . . . . . . . 6 . Treads 2 | . . . . . 2 . . . . . . 11 6 . Leg 17 | . . . . . 12 30 26 25 26 26 26 10 15 . Wheel 5 | . 28 28 28 28 21 . . . . . . . . . Device 15 | . 10 14 14 14 20 17 20 15 6 13 12 12 24 . Storage 6 | . 14 14 14 14 9 7 6 6 6 6 6 5 4 . Protection 7 | . . . . . 4 4 6 9 13 13 13 12 4 . Energy Gun 3 | . 10 . . . . 5 6 6 6 . 6 . 3 . Ballistic Gun 3 | . 8 14 14 14 9 4 . . . . . 2 1 . Ballistic Cannon 10 | . 8 14 14 14 9 9 20 19 13 . 10 6 3 . Impact Weapon 1 | . . . . . . . . . 6 6 2 2 3 . Peak Build Rating 111 | 4 9 9 10 11 36 48 55 63 63 57 70 84 111 32 Average Rating 54 | 3 7 9 9 10 26 43 54 58 55 48 64 64 96 11 On Entrance 33 | . 4 9 9 10 11 36 47 55 54 63 57 70 72 9 Naked Turns 138 | . . . . . . . . . . . . . 23 115 Heaviest Build 125 | 8 52 52 52 52 57 71 81 92 95 85 111 125 107 16 Greatest Support 140 | 26 26 26 26 26 62 65 65 70 67 67 62 140 120 25 Greatest Overweight (x) 5 | . 1 1 1 1 1 1 1 1 1 1 1 5 2 1 Average Overweight (x) . | . . 1 1 1 . . 1 1 1 1 1 . . . Largest Inventory Capacity 20 | 8 20 20 20 20 20 20 20 20 20 20 20 20 20 5 Average Capacity 19 | 7 18 20 20 20 20 20 20 20 20 20 20 20 18 5 Most Carried 20 | 3 4 4 5 9 20 20 20 20 20 20 20 20 20 5 Average Carried 15 | 2 2 4 4 7 15 19 17 19 19 20 19 16 15 4 Final Capacity 20 | 8 20 20 20 20 20 20 20 20 20 20 20 20 5 5 Final Carried 20 | 3 4 4 5 9 20 19 20 19 19 20 20 14 5 3 Class Distribution -------------------- 33% | Scavenger-Tank 29% | Mutant 14% | Scavenger-Mutant 9% | Tank 7% | Skirmisher 3% | Scavenger-Skirmisher Dominant Class ---------------- Mutant | -10/Materials Mutant | -10/Mines Mutant | -10/Exiles Mutant | -9/Mines Scavenger-Mutant | -8/Materials Skirmisher | -7/Factory Scavenger-Skirmisher | -6/Factory Scavenger-Tank | -6/Lower Caves Scavenger-Tank | -6/Lower Caves Scavenger-Mutant | -6/Data Miner Scavenger-Tank | -5/Proximity Caves Mutant | -5/Factory Mutant | -4/Factory Mutant | -3/Research Resources | -11 -10 -10 -10 -9 -8 -7 -6 -6 -6 -6 -5 -5 -4 -3 ----------- Run | Yrd Mat Min Exi Min Mat Fac Fac Low Low Dat Pro Fac Fac Res Matter Collected 4020 | 208 94 40 . 80 591 221 73 489 240 . 425 863 696 . Remotely . | . . . . . . . . . . . . . . . Salvage Created 4182 | . 109 30 . 55 876 420 64 209 118 . 387 1155 759 . Parts 183 | . 12 3 . 5 40 14 . 7 2 . 7 36 57 . Haulers Intercepted 5 | . . . . . 2 1 1 . . . . . 1 . Recyclers Shooed . | . . . . . . . . . . . . . . . Parts Field Recycled . | . . . . . . . . . . . . . . . Retrieved Matter . | . . . . . . . . . . . . . . . Parts Self-Destructed 39 | . . . . . . . . 11 8 . 20 . . . Prevented . | . . . . . . . . . . . . . . . Kills | -11 -10 -10 -10 -9 -8 -7 -6 -6 -6 -6 -5 -5 -4 -3 ------- Run | Yrd Mat Min Exi Min Mat Fac Fac Low Low Dat Pro Fac Fac Res Combat Hostiles Destroyed 98 | . 5 3 . 4 12 12 . 8 3 . 7 25 19 . Melee 7 | . . . . . . . . . . . . 6 1 . Guns 29 | . 4 1 . 3 6 1 . 1 . . 2 3 8 . Cannons 51 | . 1 2 . 1 6 11 . 7 3 . 5 14 1 . AOE 9 | . . . . . . . . . . . . . 9 . Classes Destroyed 16 | . 2 . . . 6 3 . . . . . 4 1 . Worker 11 | . . . . . . 1 . . . . . 1 9 . Builder 10 | . . . . . 3 . . . . . . . 7 . Hauler 5 | . . . . . 2 1 1 . . . . . 1 . Recycler 4 | . . . . . 3 . . . . . . 1 . . Operator 1 | . . . . . . . . . . . . . 1 . Watcher 6 | . . . . . 1 . . . . . . 1 4 . Swarmer 18 | . 3 3 . 4 . . . 5 . . . . 3 . Grunt 34 | . 2 . . . 9 8 . . 3 . 3 5 4 . Brawler 5 | . . . . . 1 . . . . . 4 . . . Duelist 7 | . . . . . . 2 . 2 . . . 3 . . Protector 2 | . . . . . . . . . . . . 1 1 . Sentry 4 | . . . . . 2 . . 1 . . . . 1 . Hunter 8 | . . . . . . . . . . . . 4 4 . Programmer 12 | . . . . . . 2 . . . . . 4 6 . Behemoth 1 | . . . . . . . . . . . . 1 . . Assembled 8 | . . . . . . . . . . . . 8 . . Best Kill Streak 9 | . 3 3 . 3 5 4 1 5 3 . 5 9 8 . Combat Bots Only 8 | . 3 3 . 3 3 4 . 5 3 . 5 8 6 . Max Kills in Single Turn 4 | . 1 2 . 1 1 1 1 1 1 . 2 2 4 . Gunslinging . | . . . . . . . . . . . . . . . Exploded 2 | . . . . . . . . . . . . . 2 . Melee 1 | . . . . . . . . . . . . 1 1 . Uniques/NPCs Destroyed . | . . . . . . . . . . . . . . . Combat | -11 -10 -10 -10 -9 -8 -7 -6 -6 -6 -6 -5 -5 -4 -3 -------- Run | Yrd Mat Min Exi Min Mat Fac Fac Low Low Dat Pro Fac Fac Res Hostile Shots Fired 1118 | . 16 5 . 7 62 97 . 45 2 . 40 320 329 195 Missed 349 | . 4 1 . 2 19 30 . 6 1 . 11 71 111 93 Damage Taken 11779 | . 93 29 . 32 564 884 . 840 14 . 550 3926 3202 1645 Core 2551 | . 45 8 . 7 93 153 . 33 . . 36 328 532 1316 Absorbed by Shields . | . . . . . . . . . . . . . . . Redirected to Shielding 206 | . . . . . 22 82 . . . . . . 102 . Ignored by Resistances 3853 | . 29 8 . 10 159 253 . 182 4 . 153 1215 1381 459 Regen/Repaired (Parts) 69 | . . . . . 69 . . . . . . . . . Core Remaining (%) 78 | 100 . . . 76 83 78 . . . . 91 67 53 . Volleys Fired 311 | . 8 3 . 5 58 39 1 14 6 . 23 75 79 . Largest 4 | . 2 2 . 2 2 3 4 4 3 . 3 4 3 . Hottest 246 | . 55 55 . 55 55 155 203 229 181 . 186 246 223 . Shots Fired 646 | . 16 6 . 10 116 106 4 53 19 . 54 146 116 . Gun 251 | . 8 3 . 5 58 54 1 13 7 . 9 34 59 . Cannon 364 | . 8 3 . 5 58 52 3 39 12 . 45 112 27 . Launcher 26 | . . . . . . . . . . . . . 26 . Special 5 | . . . . . . . . 1 . . . . 4 . Kinetic 478 | . 16 6 . 10 116 78 3 39 12 . 45 122 31 . Thermal 137 | . . . . . . 28 1 13 7 . 9 24 55 . Explosive 26 | . . . . . . . . . . . . . 26 . Electromagnetic . | . . . . . . . . . . . . . . . Robot Hit Streak 17 | . 8 7 . 9 13 17 5 15 8 . 10 15 15 . Robot Miss Streak 7 | . 2 . . 2 2 4 . 5 2 . 7 2 4 . Penetration Max 1 | . . . . . . . . . 1 . . . . . Secondary Targets . | . . . . . . . . . . . . . . . Shots Hit Robots 488 | . 10 5 . 4 82 83 4 33 11 . 32 133 91 . Core Hits 264 | . 7 3 . 4 43 26 2 12 5 . 12 56 91 3 Critical Kills 9 | . 1 . . . . . . 3 . . . 4 1 . Critical Parts Destroyed 10 | . . . . . . . . 3 1 . . 5 1 . Critical Strikes 45 | . 2 . . . 1 1 1 7 2 . 4 23 4 . Burn 2 | . . . . . . . . 1 1 . . . . . Destroy 10 | . 1 . . . . . . 6 1 . . 2 . . Blast 20 | . 1 . . . 1 1 1 . . . 4 10 2 . Smash 9 | . . . . . . . . . . . . 7 2 . Sever 4 | . . . . . . . . . . . . 4 . . Melee Attacks 54 | . . . . . . . . . . . . 51 3 . Impact 24 | . . . . . . . . . . . . 21 3 . Slashing 30 | . . . . . . . . . . . . 30 . . Piercing . | . . . . . . . . . . . . . . . Sneak Attacks 1 | . . . . . . . . . . . . . 1 . Combat Hostiles . | . . . . . . . . . . . . . . . Follow-up Attacks . | . . . . . . . . . . . . . . . Damage Inflicted 15478 | . 143 91 . 54 1276 1685 104 640 270 . 1070 3971 6128 46 Guns 4052 | . 88 41 . 35 518 696 18 122 67 . 140 600 1727 . Cannons 6126 | . 55 50 . 19 758 989 86 518 203 . 930 2097 421 . Explosions 3847 | . . . . . . . . . . . . 63 3784 . Melee 1365 | . . . . . . . . . . . . 1199 166 . Ramming 88 | . . . . . . . . . . . . 12 30 46 Kinetic 7318 | . 143 91 . 54 1276 1276 86 518 203 . 930 2203 538 . Thermal 3408 | . . . . . . 409 18 122 67 . 140 557 2095 . Explosive 3299 | . . . . . . . . . . . . . 3299 . Electromagnetic . | . . . . . . . . . . . . . . . Impact 941 | . . . . . . . . . . . . 775 166 . Slashing 424 | . . . . . . . . . . . . 424 . . Piercing . | . . . . . . . . . . . . . . . Highest Corruption 7 | . . . . . . 1 . 2 2 2 2 7 6 1 Average Corruption 2 | . . . . . . 1 . 2 2 2 2 2 4 1 Corruption Purged . | . . . . . . . . . . . . . . . Corruption Blocked . | . . . . . . . . . . . . . . . Effects 74 | . . . . . . 4 . 15 12 1 19 14 8 1 Message Errors 15 | . . . . . . . . 3 4 . 2 4 2 . Matter Fused 24 | . . . . . . 1 . 8 3 . 6 5 . 1 Heat Flow Errors 9 | . . . . . . 2 . 1 1 . 3 1 1 . Energy Discharges 5 | . . . . . . . . 1 . 1 2 . 1 . Parts Rejected 2 | . . . . . . . . . . . 1 1 . . Parts Fused 2 | . . . . . . 1 . . 1 . . . . . Data Loss (minor) 13 | . . . . . . . . 2 2 . 3 3 3 . Data Loss (major) 2 | . . . . . . . . . . . 2 . . . Misfires 1 | . . . . . . . . . 1 . . . . . Weapon Failures 1 | . . . . . . . . . . . . . 1 . Overload Shots . | . . . . . . . . . . . . . . . Overflow Damage 577 | . . 11 . . . 49 . 10 14 . 15 227 251 . Projectiles 143 | . . 11 . . . 49 . 10 14 . 15 42 2 . Explosions 180 | . . . . . . . . . . . . . 180 . Melee 254 | . . . . . . . . . . . . 185 69 . Knockbacks 51 | . 2 . . . 10 5 . 7 1 . 3 17 6 . Impact 4 | . . . . . . . . . . . . 2 2 . Kinetic 45 | . 2 . . . 10 5 . 7 1 . 3 13 4 . Secondary 2 | . . . . . . . . . . . . 2 . . Self-Inflicted Damage 101 | . . . . . . . . . . . . 37 43 21 Shots 4 | . . . . . . . . . . . . 1 3 . Rammed 13 | . . . . . . . . . . . . . 2 11 Targets Rammed 17 | . . . . . . . . . . . . 1 5 11 Kicked 4 | . . . . . . . . . . . . 1 3 . Crushed . | . . . . . . . . . . . . . . . Highest Temperature 662 | . 17 . . . 3 201 . 497 195 . 341 552 662 . Average Temperature 162 | . 12 . . . 3 49 . 185 97 . 139 209 175 . Received Heat Transfer 2734 | . 33 . . . 306 513 . 69 9 . 118 936 687 63 Effects 36 | . . . . . . . . 5 . . 3 14 14 . Shutdowns 16 | . . . . . . . . 1 . . . 9 6 . Energy Bleed 4 | . . . . . . . . 1 . . 2 . 1 . Interference 10 | . . . . . . . . . . . 1 4 5 . Matter Decay 2 | . . . . . . . . . . . . . 2 . Short Circuit 1 | . . . . . . . . . . . . 1 . . Damage (major) 3 | . . . . . . . . 3 . . . . . . Siege Activations . | . . . . . . . . . . . . . . . Robots Corrupted 3 | . . . . . . . . . . . . 2 1 . Combat Hostiles 1 | . . . . . . . . . . . . 1 . . Parts Fried 3 | . . . . . . . . . . . . 2 1 . Impact Corruptions 11 | . . . . . . . . . . . . 8 3 . Robots Melted 2 | . . . . . . . . . . . . 1 1 . Combat Hostiles 1 | . . . . . . . . . . . . 1 . . Parts Melted 3 | . . . . . . . . . 2 . . 1 . . Heat Transferred 5402 | . . . . . . 851 37 333 222 . 222 750 2987 . Parts Sabotaged . | . . . . . . . . . . . . . . . Parts Stolen . | . . . . . . . . . . . . . . . Parts Stripped . | . . . . . . . . . . . . . . . Power Chain Reactions . | . . . . . . . . . . . . . . . Alert | -11 -10 -10 -10 -9 -8 -7 -6 -6 -6 -6 -5 -5 -4 -3 ------- Run | Yrd Mat Min Exi Min Mat Fac Fac Low Low Dat Pro Fac Fac Res Peak Influence 1035 | . 135 114 . 100 235 187 10 . . . . 464 1035 741 Initial 446 | . . 44 . . . 56 3 . . . . 101 135 446 Average 261 | . 32 85 . 40 88 96 4 . . . . 295 523 549 Maximum Alert Level 3 | . . . . . 1 . . . . . . 2 3 3 Low Security (%) 57 | 100 100 100 . 100 96 100 100 . . . . 6 37 . Level 1 20 | . . . . . 3 . . . . . . 77 3 . Level 2 13 | . . . . . . . . . . . . 15 26 87 Level 3 9 | . . . . . . . . . . . . . 33 12 Level 4 . | . . . . . . . . . . . . . . . Level 5 . | . . . . . . . . . . . . . . . High Security . | . . . . . . . . . . . . . . . Max Security . | . . . . . . . . . . . . . . . Squads Dispatched 23 | . . . . . . 3 . . . . 1 7 11 1 Investigation 4 | . . . . . . . . . . . . 2 1 1 Extermination 6 | . . . . . . 2 . . . . . 2 2 . Reinforcement 6 | . . . . . . 1 . . . . . 1 4 . Assault 7 | . . . . . . . . . . . 1 2 4 . Garrison . | . . . . . . . . . . . . . . . Intercept . | . . . . . . . . . . . . . . . Searches Triggered . | . . . . . . . . . . . . . . . Data Miner Redirects 4 | . . . . . . . . . . . . 2 2 . Construction Impeded 2 | . . . . . . . . . . . . 1 1 . Haulers Reinforced 1 | . . . . . . . . . . . . . 1 . Active Scanning Responses . | . . . . . . . . . . . . . . . Cargo Convoy Interrupts . | . . . . . . . . . . . . . . . Stealth | -11 -10 -10 -10 -9 -8 -7 -6 -6 -6 -6 -5 -5 -4 -3 --------- Run | Yrd Mat Min Exi Min Mat Fac Fac Low Low Dat Pro Fac Fac Res Distress Signals 8 | . . . . . 2 . . . . . . . 5 1 Communications Jammed . | . . . . . . . . . . . . . . . Distress Signals . | . . . . . . . . . . . . . . . Times Spotted 228 | . 8 3 . 4 21 15 . 7 7 . 19 52 62 30 Peak Tracking Total 17 | . 3 3 . 2 4 7 . 5 5 . 13 12 13 17 Tactical Retreats 21 | . . . . . 3 . . . . . 2 8 2 6 Traps | -11 -10 -10 -10 -9 -8 -7 -6 -6 -6 -6 -5 -5 -4 -3 ------- Run | Yrd Mat Min Exi Min Mat Fac Fac Low Low Dat Pro Fac Fac Res Traps Triggered 4 | . . . . . . . . . . . . 2 . 2 Indirectly . | . . . . . . . . . . . . . . . Trap Hack Attempts . | . . . . . . . . . . . . . . . Triggered . | . . . . . . . . . . . . . . . Disarmed . | . . . . . . . . . . . . . . . Reprogrammed . | . . . . . . . . . . . . . . . Reused . | . . . . . . . . . . . . . . . Traps Extracted . | . . . . . . . . . . . . . . . Installed . | . . . . . . . . . . . . . . . Triggered . | . . . . . . . . . . . . . . . Machines | -11 -10 -10 -10 -9 -8 -7 -6 -6 -6 -6 -5 -5 -4 -3 ---------- Run | Yrd Mat Min Exi Min Mat Fac Fac Low Low Dat Pro Fac Fac Res Machines Disabled 23 | . . . . . 1 1 . . . . 1 13 7 . Max in Single Turn 3 | . . . . . 1 1 . . . . . 2 3 . Garrison Access 2 | . . . . . . . . . . . . 1 1 . Machines Repaired . | . . . . . . . . . . . . . . . Machines Dismantled . | . . . . . . . . . . . . . . . Machines Sabotaged . | . . . . . . . . . . . . . . . Overloaded Fab Kills . | . . . . . . . . . . . . . . . Hacking | -11 -10 -10 -10 -9 -8 -7 -6 -6 -6 -6 -5 -5 -4 -3 --------- Run | Yrd Mat Min Exi Min Mat Fac Fac Low Low Dat Pro Fac Fac Res Machines Accessed 17 | . 1 . 2 . 6 . . . . 4 . 2 1 1 Terminals 8 | . 1 . . . 5 . . . . . . 1 . 1 Fabricators 1 | . . . . . . . . . . . . 1 . . Repair Stations 1 | . . . . . 1 . . . . . . . . . Recycling Units . | . . . . . . . . . . . . . . . Scanalyzers . | . . . . . . . . . . . . . . . Garrison Access 1 | . . . . . . . . . . . . . 1 . Total Hacks 63 | . 3 . 5 . 18 . . . . 27 . 6 2 2 Successful 51 | . . . 5 . 12 . . . . 27 . 6 1 . Failed 11 | . 3 . . . 5 . . . . . . . 1 2 Catastrophic 2 | . . . . . 1 . . . . . . . . 1 Database Lockouts 1 | . . . . . 1 . . . . . . . . . Manual 26 | . 3 . 1 . 16 . . . . . . 2 2 2 Terminals 25 | . 3 . . . 16 . . . . . . 4 . 2 Fabricators 2 | . . . . . . . . . . . . 2 . . Repair Stations 2 | . . . . . 2 . . . . . . . . . Recycling Units . | . . . . . . . . . . . . . . . Scanalyzers . | . . . . . . . . . . . . . . . Garrison Access 2 | . . . . . . . . . . . . . 2 . Terminal Hacks 38 | . . . 5 . 3 . . . . 27 . 3 . . Record 17 | . . . 4 . . . . . . 11 . 2 . . Part Schematic 11 | . . . . . 2 . . . . 9 . . . . Robot Schematic 4 | . . . . . . . . . . 4 . . . . Prototype ID Bank 3 | . . . . . . . . . . 3 . . . . Terminal Index 2 | . . . . . 1 . . . . . . 1 . . Derelict Proto ID Bank 1 | . . . 1 . . . . . . . . . . . Fabricator Hacks 2 | . . . . . . . . . . . . 2 . . Load Schematic 1 | . . . . . . . . . . . . 1 . . Build 1 | . . . . . . . . . . . . 1 . . Repair Station Hacks 2 | . . . . . 2 . . . . . . . . . Scan Component 1 | . . . . . 1 . . . . . . . . . Repair 1 | . . . . . 1 . . . . . . . . . Recycling Unit Hacks . | . . . . . . . . . . . . . . . Scanalyzer . | . . . . . . . . . . . . . . . Garrison Access Hacks . | . . . . . . . . . . . . . . . Unauthorized Hacks 9 | . . . . . 7 . . . . . . 1 1 . Terminals 8 | . . . . . 7 . . . . . . 1 . . Assimilate 3 | . . . . . 3 . . . . . . . . . Botnet 5 | . . . . . 4 . . . . . . 1 . . Fabricators . | . . . . . . . . . . . . . . . Repair Stations . | . . . . . . . . . . . . . . . Recycling Units . | . . . . . . . . . . . . . . . Scanalyzers . | . . . . . . . . . . . . . . . Garrison Access 1 | . . . . . . . . . . . . . 1 . Jam 1 | . . . . . . . . . . . . . 1 . Data Cores Recovered . | . . . . . . . . . . . . . . . Used . | . . . . . . . . . . . . . . . Hacking Detections 10 | . 1 . . . 5 . . . . . . 2 1 1 Full Trace Events 2 | . . . . . . . . . . . . 1 . 1 Feedback Events 1 | . . . . . . . . . . . . . . 1 Corruption 1 | . . . . . . . . . . . . . . 1 Feedback Blocked . | . . . . . . . . . . . . . . . Robot Schematics Acquired 4 | . . . . . . . . . . 4 . . . . Robots Built . | . . . . . . . . . . . . . . . Authchips . | . . . . . . . . . . . . . . . Time . | . . . . . . . . . . . . . . . Total Robot Build Rating . | . . . . . . . . . . . . . . . Part Schematics Acquired 11 | . . . . . 2 . . . . 9 . . . . Parts Built 2 | . . . . . . . . . . . . 2 . . Authchips . | . . . . . . . . . . . . . . . Time 58 | . . . . . . . . . . . . 58 . . Total Part Build Rating 14 | . . . . . . . . . . . . 14 . . Parts Repaired 1 | . . . . . 1 . . . . . . . . . Time 38 | . . . . . 38 . . . . . . . . . Parts Recycled . | . . . . . . . . . . . . . . . Recycled Matter . | . . . . . . . . . . . . . . . Retrieved Matter . | . . . . . . . . . . . . . . . Retrieved Components . | . . . . . . . . . . . . . . . Parts Scanalyzed . | . . . . . . . . . . . . . . . Part Schematics Acquired . | . . . . . . . . . . . . . . . Parts Damaged . | . . . . . . . . . . . . . . . Bothacking | -11 -10 -10 -10 -9 -8 -7 -6 -6 -6 -6 -5 -5 -4 -3 ------------ Run | Yrd Mat Min Exi Min Mat Fac Fac Low Low Dat Pro Fac Fac Res Used RIF Installer . | . . . . . . . . . . . . . . . Robots Hacked . | . . . . . . . . . . . . . . . Non-combat . | . . . . . . . . . . . . . . . Combat . | . . . . . . . . . . . . . . . Robot Hacks Applied . | . . . . . . . . . . . . . . . Relay Couplers Released 5 | . . . . . . . . . . . . 1 4 . Machine Destruction 1 | . . . . . . . . . . . . 1 . . Programmers 4 | . . . . . . . . . . . . . 4 . Fabnet Peak Effective % . | . . . . . . . . . . . . . . . Robots Rewired 3 | . . . . . . . . 1 . . 2 . . . Allies Hacked 1 | . . . . . . . . . . . . . 1 . Hacks Repelled . | . . . . . . . . . . . . . . . Allies | -11 -10 -10 -10 -9 -8 -7 -6 -6 -6 -6 -5 -5 -4 -3 -------- Run | Yrd Mat Min Exi Min Mat Fac Fac Low Low Dat Pro Fac Fac Res Total Allies 7 | . . . . . 1 . . 2 . . 2 . 2 . Largest Group 3 | . . . . . 1 1 . 2 2 1 3 2 2 . Highest-Rated Group 163 | . . . . . 10 10 . 105 105 85 163 114 114 . Highest-Rated Ally 85 | . . . . . 10 10 . 85 85 85 85 85 58 . Total Orders . | . . . . . . . . . . . . . . . Ally Attacks 71 | . . . . . . . . . 14 . 34 2 21 . Total Damage 2980 | . . . . . . . . . 583 . 1187 394 816 . Kills 26 | . . . . . . . . . 4 . 12 3 7 . Allies Corrupted 1 | . . . . . . . . . . . . . 1 . Allies Melted . | . . . . . . . . . . . . . . . Field Lobotomies 3 | . . . . . . . . 1 . . . . 2 . Intel | -11 -10 -10 -10 -9 -8 -7 -6 -6 -6 -6 -5 -5 -4 -3 ------- Run | Yrd Mat Min Exi Min Mat Fac Fac Low Low Dat Pro Fac Fac Res Robot Analysis Total . | . . . . . . . . . . . . . . . Derelict Logs Recovered 10 | . . 1 . 2 . . . 3 2 . 2 . . . Drone Launches . | . . . . . . . . . . . . . . . Drone Recoveries . | . . . . . . . . . . . . . . . Exploration | -11 -10 -10 -10 -9 -8 -7 -6 -6 -6 -6 -5 -5 -4 -3 ------------- Run | Yrd Mat Min Exi Min Mat Fac Fac Low Low Dat Pro Fac Fac Res Turns Passed 10332 | 59 112 207 378 493 1056 861 86 1456 656 216 1470 1472 1585 225 Spaces Moved 5624 | 50 73 189 358 376 594 412 41 690 298 108 709 498 818 410 Core 250 | 4 . . . . . . . . . . . . 43 203 Treads 197 | . . . . . . . . . . . . 197 . . Legs 3527 | . . . . . 186 412 41 690 298 108 709 301 775 7 Wheels 1450 | 46 73 189 358 376 408 . . . . . . . . . Hover . | . . . . . . . . . . . . . . . Flight 200 | . . . . . . . . . . . . . . 200 Fastest Speed 45 | 50 90 105 105 105 101 122 192 192 197 197 192 160 50 45 Average Speed 152 | 86 101 105 105 105 109 161 192 194 197 197 192 206 163 49 Slowest Speed 470 | 90 105 105 105 105 122 192 192 200 197 197 192 470 360 120 Overloaded Moves . | . . . . . . . . . . . . . . . Propulsion Burnouts . | . . . . . . . . . . . . . . . Robots Hopped 6 | . . . . . . . . . . . . . . 6 Cave-ins Triggered 1 | . . . . . . . . 1 . . . . . . Exploration Rate (%) 38 | 3 16 36 79 84 35 17 2 70 39 74 88 9 15 10 Regions Visited 14 Branch Regions 7 Pre-discovered Areas 4 | . . 1 1 . . . . . . 1 1 . . . Known Exits Taken 2 | . . . . . . . . 1 . . . 1 . . Unknown Exits Taken 12 | 1 1 1 1 1 1 1 1 . 1 1 1 . 1 . Scrap Searched 9 | . . . . 2 . . . 2 1 . 4 . . . Spaces Dug 50 | . . . . . . . . . . . . 50 . . Terrain Destroyed 505 | . . . . . . 3 . 11 3 . 22 74 392 . Melee 1 | . . . . . . . . . . . . 1 . . Projectile 78 | . . . . . . 3 . 11 3 . 22 33 6 . AOE 426 | . . . . . . . . . . . . 40 386 . Terrain Rammed . | . . . . . . . . . . . . . . . Walls Destroyed . | . . . . . . . . . . . . . . . Machines Disabled . | . . . . . . . . . . . . . . . Actions | -11 -10 -10 -10 -9 -8 -7 -6 -6 -6 -6 -5 -5 -4 -3 --------- Run | Yrd Mat Min Exi Min Mat Fac Fac Low Low Dat Pro Fac Fac Res Total 6766 | 63 94 191 360 464 890 526 46 768 354 112 772 729 968 429 Wait 461 | 7 . . . 80 170 43 . 52 44 . 8 49 5 3 Move 5598 | 49 72 188 357 375 593 411 40 689 297 107 708 497 817 398 Hop 6 | . . . . . . . . . . . . . . 6 Pick Up 84 | 3 4 . 2 4 30 12 3 1 1 . 2 6 14 2 Fast Attach 36 | 4 3 . . . 1 . . . 1 2 2 13 9 1 Attach 41 | . 3 . . . 6 7 2 2 1 . 1 11 4 4 Detach 3 | . . . . . 1 . . . . 1 . . . 1 Swap 60 | . 1 . . . 12 5 . 6 2 . 5 14 15 . Drop 75 | . 3 . 1 . 19 9 . 3 2 2 4 12 17 3 Fire 311 | . 8 3 . 5 58 39 1 14 6 . 23 75 79 . Melee 54 | . . . . . . . . . . . . 51 3 . Ram 13 | . . . . . . . . . . . . . 2 11 Kick 4 | . . . . . . . . . . . . 1 3 . Crush . | . . . . . . . . . . . . . . . Escape Stasis . | . . . . . . . . . . . . . . . Rewire 20 | . . . . . . . . 1 . . 19 . . . Trap . | . . . . . . . . . . . . . . . Miscellaneous . | . . . . . . . . . . . . . . . Route ------- -11/Scrapyard -10/Materials -10/Mines -10/Exiles -9/Mines -8/Materials -7/Factory -6/Factory -6/Lower Caves -6/Lower Caves -6/Data Miner -5/Proximity Caves -5/Factory (discovered 3 exits: *Fac x2 / Upp) -4/Factory -3/Research History --------- Turn | Location | Event 21 | -11/Scrapyard | Discovered new exit (range 15) 60 | -11/Scrapyard | Entered Materials 155 | -10/Materials | Discovered new exit (range 6) 172 | -10/Materials | Entered Mines 173 | -10/Mines | Learned location of Storage (-7) 185 | -10/Mines | Learned Materials non-interactive machine intel 209 | -10/Mines | Deemed a non-threat by the Exiles lab entrance 210 | -10/Mines | Discovered new exit (range 5) 312 | -10/Mines | Build established: Mutant 379 | -10/Mines | Entered Exiles 406 | -10/Exiles | Met 8R-AWN 424 | -10/Exiles | Met EX-HEX 456 | -10/Exiles | Met EX-BIN 468 | -10/Exiles | Aligned with FarCom system 469 | -10/Exiles | Given EX-Vault access code 493 | -10/Exiles | Opened EX-Vault 498 | -10/Exiles | Found Field Lobotomy Kit 520 | -10/Exiles | Warned to stay clear of 0b10 Research branches 549 | -10/Exiles | Met EX-DEC 635 | -10/Exiles | Visited The Gauntlet 692 | -10/Exiles | Learned location of Zion (-7) 748 | -10/Exiles | Discovered new exit (range 10) 757 | -10/Exiles | Left Exiles lab with Field Lobotomy Kit 757 | -10/Exiles | Entered Mines 765 | -9/Mines | Met a Derelict bent on vengeance 913 | -9/Mines | Found a damaged Exp. Sensor Array with a note attached 916 | -9/Mines | Found Prototype Device 923 | -9/Mines | Learned Materials trap positions 1206 | -9/Mines | Discovered new exit (range 8) 1250 | -9/Mines | Entered Materials 1250 | -8/Materials | Evolved 4 slots: Propulsion x2, Utility x2 1251 | -8/Materials | Loaded intel: 20 trap records 1252 | -8/Materials | Loaded intel: 35 non-interactive machine locations 1253 | -8/Materials | Identified Exp. Sensor Array 2131 | -8/Materials | Build established: Scavenger-Mutant 2220 | -8/Materials | Repaired Carbon-fiber Leg 2251 | -8/Materials | Central database locked down 2286 | -8/Materials | Discovered new exit (range 13) 2306 | -8/Materials | Entered Factory 2306 | -7/Factory | Accompanied by 1 ally 2306 | -7/Factory | Evolved 2 slots: Power x1, Weapon x1 2923 | -7/Factory | Lost 4 parts (1p2u1w) 3098 | -7/Factory | Discovered new exit (range 9) 3167 | -7/Factory | Entered another Factory area 3167 | -6/Factory | Evolved 2 slots: Utility x1, Weapon x1 3214 | -6/Factory | Discovered new exit (range 15) 3253 | -6/Factory | Entered Lower Caves 3279 | -6/Lower Caves | Encountered a Warlord checkpoint 3547 | -6/Lower Caves | Build established: Scavenger-Tank 3872 | -6/Lower Caves | Attracted the attention of an 0b10 outpost 3877 | -6/Lower Caves | Crushed by falling debris 3922 | -6/Lower Caves | Lost 3 parts (1p1n1u) 4127 | -6/Lower Caves | Learned 4 Factory zone layouts 4523 | -6/Lower Caves | Learned 4 Factory zone layouts 4561 | -6/Lower Caves | Identified exit to Lower Caves 4590 | -6/Lower Caves | Spotted B-75 Beast 4594 | -6/Lower Caves | Assimilated B-75 Beast with FLK Orb 4709 | -6/Lower Caves | Entered another Lower Caves area 4709 | -6/Lower Caves | Accompanied by 2 allies 4710 | -6/Lower Caves | Encountered a Warlord checkpoint 4907 | -6/Lower Caves | Learned 4 Factory zone layouts 5271 | -6/Lower Caves | Learned 8 Factory zone layouts 5324 | -6/Lower Caves | Discovered new exit (range 16) 5365 | -6/Lower Caves | Entered Data Miner 5365 | -6/Data Miner | Accompanied by 1 ally 5367 | -6/Data Miner | Discovered new exit (range 6) 5404 | -6/Data Miner | Met Data Miner 5467 | -6/Data Miner | Learned location of Section 7 (-3) 5467 | -6/Data Miner | Acquired the access code to Warlord's prototype stash 5511 | -6/Data Miner | Received God Mode back door access code from Data Miner 5581 | -6/Data Miner | Entered Proximity Caves 5581 | -5/Proximity Caves | Accompanied by 1 ally 5662 | -5/Proximity Caves | Build established: Scavenger-Mutant 5911 | -5/Proximity Caves | Learned 4 Factory zone layouts 6060 | -5/Proximity Caves | Learned location of Warlord (-4) 6069 | -5/Proximity Caves | Attracted the attention of an 0b10 outpost 6387 | -5/Proximity Caves | Build established: Scavenger-Tank 7017 | -5/Proximity Caves | Discovered new exit (range 15) 7051 | -5/Proximity Caves | Entered Factory 7051 | -5/Factory | Accompanied by 2 allies 7051 | -5/Factory | Evolved 2 slots: Propulsion x1, Utility x1 7052 | -5/Factory | Identified exit to Factory 7052 | -5/Factory | Identified exit to Upper Caves 7565 | -5/Factory | Spotted B-75 Beast 7600 | -5/Factory | Destroyed B-75 Beast 7640 | -5/Factory | Assembled infested ambush trap array 7651 | -5/Factory | First assault squad dispatched 7666 | -5/Factory | Incoming assault squad redirected 7685 | -5/Factory | Incoming assault squad redirected 7691 | -5/Factory | Destroyed 8 combat bots 7714 | -5/Factory | Lost 4 parts (1u3w) 7933 | -5/Factory | Lost 7 parts (1p3n1u2w) 7977 | -5/Factory | Build established: Mutant 8014 | -5/Factory | Found Powered Armor 8018 | -5/Factory | Found Powered Armor 8022 | -5/Factory | Found Powered Armor 8221 | -5/Factory | Fabricated Myomer Leg? 8492 | -5/Factory | Discovered exit to Factory (range 15) 8523 | -5/Factory | Entered another Factory area 8523 | -4/Factory | Evolved 2 slots: Propulsion x1, Utility x1 9243 | -4/Factory | Build established: Tank 9523 | -4/Factory | First assault squad dispatched 9590 | -4/Factory | Assimilated G-73 Enforcer with FLK Orb 9592 | -4/Factory | Assimilated H-77 Assassin with FLK Orb 9634 | -4/Factory | Lost 3 parts (1u2w) 10014 | -4/Factory | Incoming assault squad redirected 10047 | -4/Factory | Incoming assault squad redirected 10084 | -4/Factory | Released all parts (7) 10102 | -4/Factory | Discovered new exit (range 8) 10108 | -4/Factory | Entered Research 10108 | -3/Research | Evolved 2 slots: Utility x2 10129 | -3/Research | Build established: Mutant 10194 | -3/Research | Spotted B-86 Titan 10219 | -3/Research | Core integrity fell below 50% 10323 | -3/Research | Core integrity fell below 20% 10333 | -3/Research | Destroyed by S-43 Plague with Heavy Machine Gun Last Messages --------------- 10221_ Triggered Ambush Trap. 10221_ L-61 Swordsman emerges from a hatch in the floor. 10221_ G-67 Veteran emerges from a hatch in the floor. 10244_ System corrupted: Matter fused (-5). 10266_ Acquired Adv. Thermal Shield. 10269_ Penetrated by Slug. 10269_ Slug penetrates Wall. 10277_ Connecting with Terminal... 10287_ Penetrated by Slug. 10287_ Slug penetrates Wall. 10303_ Critical hit (Destroy). 10303_ Impulse Thruster Array destroyed. 10307_ Mic. Fission Core destroyed. 10310_ Slug penetrates Door. 10311_ Slug penetrates Wall. 10311_ Slammed into S-43 Plague. 10323_ Antimatter Reactor destroyed. 10328_ Dropped Myomer Leg. Map ----- +----------------------------------------------------+ | ???????????????# #??????# #?????? | | ???????????????# #????### +?????? | | ???????????????# #???*= # #?????? | | ???????????????# #??** # #?????? | | ???????????????# #? *= # ??????? | | ?????????####### """ # # ??????? | | ?????????# ## """ + # ??????? | | ?????????# ## """ # # ??????? | | ?????????# ########/###? + ????? | | ?????????# ###### Y #?? # ???? | | ?????????# + s # ##??????? | | ?????????# # s h + #???????? | | ?????????# # sss # #???????? | | ?????????# *## #? +???????? | | ?????????# ## s ##??? #???????? | | ?????????####### #?????###???????? | | ???????????????#= #???????????????? | | ???????????????# #???????????????? | | ???????????????# #???????????????? | | ????????????#### #???????????????? | | ????????????# #???????????????? | | ????????????# #???????????????? | | ????????????# #???????????????? | | ????????????# #???????????????? | | ????????????### #???????????????? | | ??????????????# @ #???????????????? | | ??????????????# +???????????????? | | ??????????????# #???????????????? | | ??????????????# ????????????? | | ??????????????# s?????????? | | ??????????????+ ss?????????? | | ??????????????# os??????????? | | ??????????????# #####+######??????????? | | ??????????????# #?????????????????????? | | ??????????????+ ?????????????????????? | | ??????????????##+##?????????????????????? | | ????????????????????????????????????????? | | ????????????????????????????????????????? | | ????????????????????????????????????????? | | ????????????????????????????????????????? | | ????????????????????????????????????????? | | ????????????????????????????????????????? | | ????????????????????????????????????????? | | ????????????????????????????????????????? | | ????????????????????????????????????????? | | ????????????????????????????????????????? | | ????????????????????????????????????????? | | ????????????????????????????????????????? | | ????????????????????????????????????????? | | ????????????????????????????????????????? | +----------------------------------------------------+ Best States ------------- Heat Dissipation 88 Energy Generation 37 Energy Capacity 525 Matter Stores 300 Matter Capacity 300 Sight Range 16 Robot Scan Range 20 Terrain Scan Density 10 ECM Strength 1 Armor Coverage 1200 Resistance: KI 20 Resistance: TH 35 Resistance: EX 70 Resistance: EM 45 Resistance: I 20 Resistance: S 20 Resistance: P 20 Utility Shielding 66 Weapon Shielding 66 Weapon Cycling 20 Evasion (%) 61 Recoil Reduction 9 Matter Filtering 30 Energy Filtering 30 Kinecelleration 40 Offensive Hacking 10 Item Schematics ----------------- System Shield | -8/Materials | Hacked Hacking Suite | -8/Materials | Hacked Combat Drone Bay | -6/Data Miner | Free Lgt. Regenerative Plating | -6/Data Miner | Free Prc. Energy Filter | -6/Data Miner | Free Enh. Flexi-carbon Leg | -6/Data Miner | Free Enh. Force Rifle | -6/Data Miner | Free Myomer Leg | -6/Data Miner | Free Imp. Cloaking Device | -6/Data Miner | Free Matter Neutralizer | -6/Data Miner | Free Hvy. Disruptor Cannon | -6/Data Miner | Free Robot Schematics ------------------ P-60 Hacker | -6/Data Miner | Free R-10 Processor | -6/Data Miner | Free G-50 Soldier | -6/Data Miner | Free Y-64 Sentinel | -6/Data Miner | Free Fabricated ------------ Myomer Leg | x2 | -5/Factory Alien Tech Used ----------------- None Achievements -------------- None Challenges ------------ None Game ------ Seed PotentialDeepDerivative Manual? 0 Play Time 01:11:22 Cumulative 188.7 hours Start 2024.10.18 @ 05:45:09 End 2024.10.18 @ 06:56:52 Sessions 1 Manual Loads 0 Difficulty Adventurer Special Mode None Game No. 223 Rogue 0 Adventurer 223 Explorer 0 Win Type - Total 0 Types 0/0/0/0/0/0/0/0/0 Lore% 59 Gallery% 56 Achievement% 45 Wizard Run 0 Options --------- Layout 2 ASCII 0 Keyboard 0 Movement Mouse Keybinds 0 Fullscreen 2 Font 48/Smallcaps Map View 50x44 Zoom Use 0% Tactical HUD 1 Map Filters NONE Filters NONE Steam 1 RUN: 6e404442-f981-446b-9733-36595813c3aa